[Event "GM ZIA Smirity-A 2025"]
[Site "Dhaka"]
[Date "2025.02.21"]
[Round "8.5"]
[White "Kazi Zarin, Tasnim"]
[Black "Wadifa, Ahmed"]
[Result "0-1"]
[Annotator "NA"]
[ECO "B51"]
[WhiteElo "1897"]
[BlackElo "2053"]
[PlyCount "132"]
[EventDate "2025.02.17"]
[EventType "swiss"]
[EventCountry "BAN"]
[SourceTitle "playchess.com"]
[Source "ChessBase"]
[SourceQuality "1"]
[TimeControl "5400+30"]

1. e4 {[%emt 0:08:03]} c5 {[%emt 0:00:09]} 2. Nf3 {[%emt 0:00:39]} d6 {[%emt 0:00:10]} 3. Bb5+ {[%emt 0:00:51]} Nd7 {[%emt 0:00:18]} 4. O-O {[%emt 0:01:49]} a6 {[%emt 0:00:06]} 5. Be2 {[%emt 0:07:10]} Ngf6 {[%emt 0:00:39]} 6. d3 {[%emt 0:01:33] B51: Sicilian: Moscow Variation (3 Bb5+) without 3...Bd7.} e6 {[%emt 0:01:53]} 7. Re1 {[%emt 0:01:07]} Be7 {[%emt 0:00:38]} 8. Bf1 {[%emt 0:03:15]} O-O {[%emt 0:03:32]} 9. c3 {[%emt 0:01:06]} b5 {[%emt 0:02:59]} 10. a4 {[%emt 0:05:45]} Bb7 {[%emt 0:01:54]} 11. Nbd2 {[%emt 0:06:31]} Bc6 {[%emt 0:05:13]} 12. axb5 {[%emt 0:09:00]} axb5 {[%emt 1:18:59]} 13. Rxa8 {[%emt 0:00:05]} Qxa8 {[%emt 0:00:00]} 14. Qc2 {[%emt 0:02:41]} Ne5 {[%emt 0:00:00]} 15. Nxe5 {[%emt 0:05:59]} dxe5 {[%emt 0:00:00]} 16. Nf3 {[%emt 0:00:32]} Bd6 {[%emt 0:00:00]} 17. Bg5 {[%emt 0:02:30]} Nd7 {[%emt 0:00:00]} 18. d4 {[%emt 0:04:56]} f6 {[%emt 0:00:00]} 19. Bd2 {[%emt 0:03:50]} Kh8 {[%emt 0:00:00]} 20. b3 {[%emt 0:12:13]} Rc8 {[%emt 0:00:00]} 21. dxe5 {[%emt 0:04:54]} Nxe5 {[%emt 0:00:00]} 22. Nxe5 {[%emt 0:01:01]} Bxe5 {[%emt 0:00:00]} 23. Bd3 {[%emt 0:02:56]} Rd8 {[%emt 0:00:00]} 24. g3 {[%emt 0:01:55]} h6 $11 {[%emt 0:00:00]} (24... c4 $5 25. bxc4 Qa4 $15) 25. Be3 {[%emt 0:03:52]} c4 {[%emt 0:00:00]} 26. bxc4 {[%emt 0:00:50]} bxc4 {[%emt 0:00:00]} 27. Bxc4 {[%emt 0:00:10]} Bxe4 {[%emt 0:00:00]} 28. Qe2 {[%emt 0:03:04]} Bxc3 {[%emt 0:00:00]} 29. Rc1 {[%emt 0:00:20]} Bf3 {[%emt 0:00:00]} 30. Qc2 {[%emt 0:03:13]} Bh1 {[%emt 0:00:00]} 31. Bf1 {[%emt 0:00:01]} Be5 {[%emt 0:00:00]} 32. Qg6 {[%emt 0:01:19]} Be4 {[%emt 0:00:00]} 33. Qh5 {[%emt 0:00:30]} Kh7 {[%emt 0:00:00]} 34. Bh3 {[%emt 0:00:32]} Qd5 {[%emt 0:00:00]} 35. Rf1 {[%emt 0:01:00]} f5 {[%emt 0:00:00]} 36. Qf7 {[%emt 0:00:49]} Rd7 {[%emt 0:02:11]} 37. Qe8 {[%emt 0:00:32]} Bf6 {[%emt 0:00:33]} 38. Qb8 {[%emt 0:00:29]} Rb7 {[%emt 0:01:19]} 39. Qf8 {[%emt 0:00:26]} Bf3 {[%emt 0:01:07]} 40. Re1 {[%emt 0:01:08]} Qe4 {[%emt 0:02:17]} 41. Bf1 {[%emt 0:01:04]} Rb1 {[%emt 0:01:02]} 42. Rxb1 {[%emt 0:01:05]} Qxb1 {[%emt 0:00:02]} 43. Qa3 {[%emt 0:00:18]} Qe4 {[%emt 0:05:31]} 44. Bd3 {[%emt 0:00:29]} Qd5 {[%emt 0:00:11]} 45. Qa6 {[%emt 0:00:33]} Bh1 {[%emt 0:00:50]} 46. Bf1 {[%emt 0:00:02]} e5 {[%emt 0:00:54]} 47. Qb5 {[%emt 0:00:01]} Qxb5 {[%emt 0:00:53]} 48. Bxb5 {[%emt 0:00:02]} Bf3 {[%emt 0:00:05]} 49. Bd7 {[%emt 0:00:38]} g6 {[%emt 0:00:06]} 50. Kf1 {[%emt 0:00:29]} e4 {[%emt 0:00:41]} 51. Bd2 {[%emt 0:01:21]} Kg7 {[%emt 0:00:37]} 52. h4 {[%emt 0:00:26]} Be5 {[%emt 0:00:26]} 53. Ke1 {[%emt 0:00:24]} Bg4 {[%emt 0:00:15]} 54. Bc6 {[%emt 0:00:30]} Bf6 {[%emt 0:00:11]} 55. Bb5 {[%emt 0:01:22]} g5 {[%emt 0:00:11]} 56. hxg5 {[%emt 0:00:05]} hxg5 {[%emt 0:00:28]} 57. Be2 {[%emt 0:01:00]} Bxe2 {[%emt 0:01:40]} 58. Kxe2 {[%emt 0:00:01]} Kg6 {[%emt 0:00:09]} 59. Be3 {[%emt 0:00:27]} Be5 {[%emt 0:00:27]} 60. Bc5 {[%emt 0:00:59]} Kh5 {[%emt 0:00:11]} 61. Bb6 {[%emt 0:00:27]} Kg4 {[%emt 0:00:11]} 62. Bc5 {[%emt 0:00:07]} Bxg3 {[%emt 0:01:05]} 63. fxg3 {[%emt 0:00:16]} Kxg3 {[%emt 0:00:04]} 64. Ke3 {[%emt 0:00:40]} f4+ {[%emt 0:00:53]} 65. Kxe4 {[%emt 0:00:16]} f3 {[%emt 0:00:25]} 66. Bg1 {[%emt 0:01:15]} Kg2 {[%emt 0:00:19]} 0-1

[Event "GM ZIA Smirity-A 2025"]
[Site "Dhaka"]
[Date "2025.02.21"]
[Round "8.6"]
[White "Rahman, Syed Mahfuzur"]
[Black "Swarnavo Choudhury"]
[Result "0-1"]
[Annotator "RC"]
[ECO "D93"]
[WhiteElo "2113"]
[BlackElo "2120"]
[PlyCount "112"]
[EventDate "2025.02.17"]
[EventType "swiss"]
[EventCountry "BAN"]
[SourceTitle "playchess.com"]
[Source "ChessBase"]
[SourceQuality "1"]
[TimeControl "5400+30"]

1. d4 {[%emt 0:00:03]} Nf6 {[%emt 0:00:07]} 2. c4 {[%emt 0:00:01]} g6 {[%emt 0:00:08]} 3. Nc3 {[%emt 0:00:04]} d5 {[%emt 0:00:06]} 4. Bf4 {[%emt 0:00:05]} Bg7 {[%emt 0:00:05]} 5. Nf3 {[%emt 0:00:34]} O-O {[%emt 0:00:46]} 6. e3 {[%emt 0:00:17]} c5 {[%emt 0:01:00]} 7. dxc5 {[%emt 0:01:01]} Qa5 {[%emt 0:01:48]} 8. Qa4 {[%emt 0:13:10]} Qxc5 {[%emt 0:03:20]} 9. b4 {[%emt 0:01:18]} Qc6 {[%emt 0:08:46]} 10. b5 {[%emt 0:10:04]} Qc5 {[%emt 0:09:36]} 11. Be5 {[%emt 0:06:22]} Nbd7 {[%emt 0:38:07]} 12. Bd4 {[%emt 0:01:42]} Qd6 {[%emt 0:00:16]} 13. cxd5 {[%emt 0:13:34]} Nxd5 {[%emt 0:03:33]} 14. Bxg7 {[%emt 0:09:28]} Kxg7 {[%emt 0:00:10]} 15. Qd4+ {[%emt 0:10:49]} N7f6 {[%emt 0:01:23]} 16. e4 {[%emt 0:02:22]} Nxc3 {[%emt 0:03:20]} 17. Qxc3 {[%emt 0:00:02]} Qf4 {[%emt 0:01:51]} 18. Bd3 {[%emt 0:03:28]} Bg4 {[%emt 0:03:03]} 19. Qe5 {[%emt 0:04:01]} Qxe5 {[%emt 0:06:26]} 20. Nxe5 {[%emt 0:00:13]} Rac8 {[%emt 0:02:50]} 21. Kd2 {[%emt 0:04:44]} Rc5 {[%emt 0:02:28]} 22. f4 {[%emt 0:05:01]} Rd8 {[%emt 0:03:14]} 23. Rhe1 {[%emt 0:01:20]} Be6 {[%emt 0:00:34]} 24. a4 {[%emt 0:07:45]} Bc4 {[%emt 0:04:49]} 25. Ra3 {[%emt 0:00:30]} Bxd3 {[%emt 0:00:09]} 26. Rxd3 {[%emt 0:00:18]} Rdc8 {[%emt 0:00:08]} 27. Ke3 {[%emt 0:01:35]} Rc2 {[%emt 0:00:18]} 28. Re2 {[%emt 0:01:37]} Rc1 {[%emt 0:03:00]} 29. Ra3 {[%emt 0:02:42]} Rb1 {[%emt 0:00:31]} 30. h3 {[%emt 0:00:44]} Rb4 {[%emt 0:00:14]} 31. Kf3 {[%emt 0:00:07]} Rc1 {[%emt 0:00:30]} 32. g3 {[%emt 0:00:46]} Rf1+ {[%emt 0:00:19]} 33. Kg2 {[%emt 0:00:03]} Rd1 {[%emt 0:00:07]} 34. Kf3 {[%emt 0:00:57]} Rdd4 {[%emt 0:00:25]} 35. Nd3 {[%emt 0:00:37]} Rxa4 {[%emt 0:00:16]} 36. Rxa4 {[%emt 0:00:07]} Rxa4 {[%emt 0:00:02]} 37. e5 {[%emt 0:00:06]} Nd5 {[%emt 0:00:25]} 38. Rb2 {[%emt 0:01:02]} e6 {[%emt 0:01:32]} 39. Rb3 {[%emt 0:00:34]} b6 {[%emt 0:00:10]} 40. Nf2 {[%emt 0:00:17]} h6 {[%emt 0:03:42]} 41. Ne4 {[%emt 0:00:37]} Ra1 {[%emt 0:00:43]} 42. h4 {[%emt 0:00:28]} Rf1+ {[%emt 0:00:08]} 43. Ke2 {[%emt 0:00:23]} Ra1 {[%emt 0:00:13]} 44. Nd6 {[%emt 0:00:31]} a5 {[%emt 0:01:09]} 45. bxa6 {[%emt 0:00:06]} Rxa6 {[%emt 0:00:01]} 46. Kd3 {[%emt 0:01:04]} g5 {[%emt 0:00:15]} 47. hxg5 {[%emt 0:00:19]} hxg5 {[%emt 0:00:01]} 48. f5 {[%emt 0:00:58]} Ra4 {[%emt 0:01:46]} 49. Nc4 {[%emt 0:00:30]} exf5 {[%emt 0:00:26]} 50. Kd4 {[%emt 0:00:02]} b5 {[%emt 0:00:42]} 51. Rxb5 {[%emt 0:00:04]} Nc7 {[%emt 0:00:11]} 52. Rb7 {[%emt 0:01:07]} Ne6+ {[%emt 0:00:13]} 53. Kd5 {[%emt 0:00:10]} Kg6 {[%emt 0:00:14]} 54. Nd6 {[%emt 0:00:57]} Rd4+ {[%emt 0:00:43]} 55. Kc6 {[%emt 0:00:13]} Nd8+ {[%emt 0:00:08]} 56. Kc5 {[%emt 0:00:16]} Rxd6 {[%emt 0:00:22]} 0-1

[Event "GM ZIA Smirity-A 2025"]
[Site "Dhaka"]
[Date "2025.02.21"]
[Round "8.7"]
[White "Sajidul, Haque"]
[Black "Ghosh, Chanchal Kumer"]
[Result "*"]
[Annotator "RC"]
[ECO "C50"]
[WhiteElo "2107"]
[BlackElo "2041"]
[PlyCount "26"]
[EventDate "2025.02.17"]
[EventType "swiss"]
[EventCountry "BAN"]
[SourceTitle "playchess.com"]
[Source "ChessBase"]
[SourceQuality "1"]
[TimeControl "5400+30"]

1. e4 {[%emt 0:00:06]} e5 {[%emt 0:12:13]} 2. Nf3 {[%emt 0:00:14]} Nc6 {[%emt 0:00:08]} 3. Bc4 {[%emt 0:02:03]} f5 {[%emt 0:00:50]} 4. d3 {[%emt 0:08:13]} Nf6 {[%emt 0:02:34]} 5. O-O {[%emt 0:03:17]} d6 {[%emt 0:04:19]} 6. Ng5 {[%emt 0:10:30]} d5 {[%emt 0:10:02]} 7. exd5 {[%emt 0:00:38]} Nxd5 {[%emt 0:00:14]} 8. Nc3 {[%emt 0:01:41]} Nce7 {[%emt 0:05:52]} 9. Re1 {[%emt 0:01:47]} Qd6 {[%emt 0:03:36]} 10. Qe2 {[%emt 0:12:16]} c6 {[%emt 0:13:51]} 11. Qxe5 {[%emt 0:03:41]} Qxe5 {[%emt 0:01:45]} 12. Re4 {[%emt 0:52:04]} Qf4 13. Rxf4 {[%emt 0:00:00]} h6 {[%emt 0:01:15]} *

[Event "GM ZIA Smirity-A 2025"]
[Site "Dhaka"]
[Date "2025.02.21"]
[Round "8.7"]
[White "Sajidul, Haque"]
[Black "Ghosh, Chanchal Kumer"]
[Result "1-0"]
[Annotator "RC"]
[ECO "C50"]
[WhiteElo "2107"]
[BlackElo "2041"]
[PlyCount "71"]
[EventDate "2025.02.17"]
[EventType "swiss"]
[EventCountry "BAN"]
[SourceTitle "playchess.com"]
[Source "ChessBase"]
[SourceQuality "1"]
[TimeControl "5400+30"]

1. e4 {[%emt 0:00:06]} e5 {[%emt 0:12:13]} 2. Nf3 {[%emt 0:00:14]} Nc6 {[%emt 0:00:08]} 3. Bc4 {[%emt 0:02:03]} f5 {[%emt 0:00:50]} 4. d3 {[%emt 0:08:13]} Nf6 {[%emt 0:02:34]} 5. O-O {[%emt 0:03:17]} d6 {[%emt 0:04:19]} 6. Ng5 {[%emt 0:10:30]} d5 {[%emt 0:10:02]} 7. exd5 {[%emt 0:00:38]} Nxd5 {[%emt 0:00:14]} 8. Nc3 {[%emt 0:01:41]} Nce7 {[%emt 0:05:52]} 9. Re1 {[%emt 0:01:47]} Qd6 {[%emt 0:03:36]} 10. Qe2 {[%emt 0:12:16]} c6 {[%emt 0:13:51]} 11. Qxe5 {[%emt 0:03:41]} Qxe5 {[%emt 0:01:45]} 12. Rxe5 {[%emt 0:00:02]} h6 {[%emt 0:00:45]} 13. Nxd5 {[%emt 0:01:40]} cxd5 {[%emt 0:01:49]} 14. Bb5+ {[%emt 0:00:02]} Bd7 {[%emt 0:00:20]} 15. Bxd7+ {[%emt 0:03:24]} Kxd7 {[%emt 0:00:21]} 16. Ne6 {[%emt 0:05:43]} Kd6 {[%emt 0:03:33]} 17. Re1 {[%emt 0:08:01]} g5 {[%emt 0:07:57]} 18. b3 {[%emt 0:02:51]} Ng6 {[%emt 0:00:39]} 19. Ba3+ {[%emt 0:00:45]} Kd7 {[%emt 0:02:32]} 20. Nxf8+ {[%emt 0:00:20]} Nxf8 {[%emt 0:00:22]} 21. Re7+ {[%emt 0:08:53]} Kc6 {[%emt 0:03:26]} 22. Rae1 {[%emt 0:02:12]} Rd8 {[%emt 0:01:35]} 23. Rf7 {[%emt 0:01:03]} Nd7 {[%emt 0:03:20]} 24. Re6+ {[%emt 0:02:10]} Kc7 {[%emt 0:00:08]} 25. Rd6 {[%emt 0:02:01]} Rhe8 {[%emt 0:02:37]} 26. Kf1 {[%emt 0:00:45]} f4 {[%emt 0:01:38]} 27. Rxd5 {[%emt 0:00:45]} Re6 {[%emt 0:00:08]} 28. g3 {[%emt 0:04:15]} fxg3 {[%emt 0:02:11]} 29. hxg3 {[%emt 0:00:45]} Ra6 {[%emt 0:00:16]} 30. Be7 {[%emt 0:00:33]} Rh8 {[%emt 0:09:26]} 31. Bf6 {[%emt 0:01:47]} Rxf6 {[%emt 0:00:23]} 32. Rdxd7+ {[%emt 0:00:08]} Kc6 {[%emt 0:05:01]} 33. Rc7+ {[%emt 0:01:21]} Kd6 {[%emt 0:00:34]} 34. Rxb7 {[%emt 0:00:46]} Rxf7 {[%emt 0:01:11]} 35. Rxf7 {[%emt 0:00:59]} a5 {[%emt 0:00:19]} 36. Ra7 {[%emt 0:00:23]} 1-0

[Event "GM ZIA Smirity-A 2025"]
[Site "Dhaka"]
[Date "2025.02.21"]
[Round "8.8"]
[White "Noshin, Anjum"]
[Black "Sagor"]
[Result "1-0"]
[Annotator "NA RC"]
[ECO "B32"]
[WhiteElo "2053"]
[BlackElo "2001"]
[PlyCount "93"]
[EventDate "2025.02.17"]
[EventType "swiss"]
[EventCountry "BAN"]
[SourceTitle "playchess.com"]
[Source "ChessBase"]
[SourceQuality "1"]
[TimeControl "5400+30"]

1. e4 {[%emt 0:00:16]} c5 {[%emt 0:00:13]} 2. Nf3 {[%emt 0:00:12]} Nc6 {[%emt 0:00:10]} 3. d4 {[%emt 0:00:29]} cxd4 {[%emt 0:00:06]} 4. Nxd4 {[%emt 0:00:06]} e5 {[%emt 0:01:11]} 5. Nb5 {[%emt 0:00:29]} d6 {[%emt 0:00:14]} 6. N1c3 {[%emt 0:01:16]} a6 {[%emt 0:00:17]} 7. Na3 {[%emt 0:00:05]} Be7 {[%emt 1:31:49]} 8. Nc4 {[%emt 0:00:42]} b5 {[%emt 0:00:00] B32: Sicilian: Löwenthal and Kalashnikov Variations.} 9. Ne3 {[%emt 0:00:08]} Nf6 {[%emt 0:00:00]} 10. Bd3 {[%emt 0:04:00]} O-O {[%emt 0:00:00]} 11. O-O {[%emt 0:00:33]} Rb8 {[%emt 0:00:00] 11...Nb4 is the hot move.} 12. a4 {[%emt 0:00:51]} b4 {[%emt 0:00:00]} 13. Ncd5 {[%emt 0:00:13]} Nxd5 {[%emt 0:00:00]} 14. exd5 {[%emt 0:07:46]} Na5 {[%emt 0:00:00]} 15. Nf5 {[%emt 0:05:08]} Bxf5 {[%emt 0:00:00]} 16. Bxf5 {[%emt 0:00:07]} Nb7 {[%emt 0:00:00]} 17. f4 $146 {[%emt 0:07:08]} ({Predecessor:} 17. Qg4 Nc5 18. Bh6 Bf6 19. Rad1 Re8 20. Be3 g6 21. Bxc5 dxc5 22. Bd3 e4 23. Bxa6 Bxb2 {½-½ Csjernyik,J (2548)-Peres,J (2478) POR-SVK friendly m email 2005 (1.2)}) 17... g6 {[%emt 0:00:00]} 18. Bd3 {[%emt 0:04:46]} f5 {[%emt 0:00:00]} 19. Qe2 {[%emt 0:05:53]} e4 {[%emt 0:00:00]} 20. Bxa6 {[%emt 0:00:59]} Bf6 {[%emt 0:00:00]} 21. Kh1 {[%emt 0:18:25]} Qc7 {[%emt 0:00:00]} 22. Bxb7 {[%emt 0:14:42]} Rxb7 {[%emt 0:00:00]} 23. a5 {[%emt 0:00:43]} Ra7 {[%emt 0:00:00]} 24. a6 {[%emt 0:02:24]} Bd4 {[%emt 0:00:00]} 25. Ra4 {[%emt 0:02:29]} Rb8 {[%emt 0:00:00]} 26. c3 {[%emt 0:01:16]} Bc5 {[%emt 0:00:00]} 27. cxb4 {[%emt 0:02:49]} Bxb4 {[%emt 0:00:00]} (27... Qd7 $14 28. b3 Bxb4) 28. Be3 {[%emt 0:00:56]} Bc5 {[%emt 0:00:00]} 29. Rc1 {[%emt 0:05:58]} Qb6 {[%emt 0:00:00]} 30. Bxc5 {[%emt 0:00:07]} dxc5 {[%emt 0:00:00]} 31. Qc4 {[%emt 0:01:46]} Qd6 {[%emt 0:00:00]} 32. b3 {[%emt 0:06:56]} Rb6 $16 {[%emt 0:00:00]} 33. Rca1 {[%emt 0:01:05]} h6 {[%emt 0:00:00]} 34. g3 {[%emt 0:00:04]} g5 {[%emt 0:00:00]} 35. fxg5 {[%emt 0:01:22]} hxg5 {[%emt 0:00:00]} 36. Ra5 {[%emt 0:00:08]} Rb4 {[%emt 0:00:07]} 37. Qxc5 {[%emt 0:00:47]} Qxc5 {[%emt 0:00:10]} 38. Rxc5 {[%emt 0:00:06]} Rd4 {[%emt 0:06:08]} 39. d6 {[%emt 0:04:54]} Rxd6 {[%emt 0:00:21]} 40. Rxf5 {[%emt 0:00:23]} Raxa6 {[%emt 0:00:14]} 41. Rxg5+ {[%emt 0:00:40]} Kf7 {[%emt 0:00:16]} 42. Rxa6 {[%emt 0:00:14]} Rxa6 {[%emt 0:00:01]} 43. Re5 {[%emt 0:00:09]} Rb6 {[%emt 0:00:09]} 44. Rxe4 {[%emt 0:00:07]} Rxb3 {[%emt 0:00:13]} 45. Kg2 {[%emt 0:00:10]} Kg6 {[%emt 0:00:03]} 46. h4 {[%emt 0:00:26]} Kf5 {[%emt 0:00:12]} 47. Ra4 {[%emt 0:00:11]} 1-0

[Event "GM ZIA Smirity-A 2025"]
[Site "Dhaka"]
[Date "2025.02.21"]
[Round "8.9"]
[White "Alam, Monjur"]
[Black "Khan, Nazrana"]
[Result "1/2-1/2"]
[Annotator "RC"]
[ECO "D37"]
[WhiteElo "1906"]
[BlackElo "1840"]
[PlyCount "78"]
[EventDate "2025.02.17"]
[EventType "swiss"]
[EventCountry "BAN"]
[SourceTitle "playchess.com"]
[Source "ChessBase"]
[SourceQuality "1"]
[TimeControl "5400+30"]

1. d4 {[%emt 0:08:00]} d5 {[%emt 0:00:34]} 2. c4 {[%emt 0:00:26]} e6 {[%emt 0:00:10]} 3. Nc3 {[%emt 0:00:04]} Nf6 {[%emt 0:00:06]} 4. Nf3 {[%emt 0:00:13]} Be7 {[%emt 0:00:23]} 5. Bf4 {[%emt 0:01:02]} O-O {[%emt 0:01:03]} 6. e3 {[%emt 0:00:08]} c5 {[%emt 0:00:29]} 7. cxd5 {[%emt 0:00:43]} Nxd5 {[%emt 0:01:23]} 8. Nxd5 {[%emt 0:02:06]} exd5 {[%emt 0:00:42]} 9. Be2 {[%emt 0:01:00]} Nc6 {[%emt 0:02:45]} 10. dxc5 {[%emt 0:00:47]} Bxc5 {[%emt 0:03:12]} 11. O-O {[%emt 0:00:22]} d4 {[%emt 0:02:45]} 12. Rc1 {[%emt 0:01:48]} Bb6 {[%emt 0:01:15]} 13. exd4 {[%emt 0:02:42]} Nxd4 {[%emt 0:01:17]} 14. Nxd4 {[%emt 0:02:41]} Bxd4 {[%emt 0:02:09]} 15. Bg4 {[%emt 0:08:39]} Bxb2 {[%emt 0:04:20]} 16. Rb1 {[%emt 0:04:40]} Qf6 {[%emt 0:03:56]} 17. Bg3 {[%emt 0:03:09]} Bxg4 {[%emt 0:17:14]} 18. Qxg4 {[%emt 0:00:04]} Be5 {[%emt 0:00:56]} 19. Rxb7 {[%emt 0:03:21]} Bxg3 {[%emt 0:01:20]} 20. fxg3 {[%emt 0:01:34]} Qg6 {[%emt 0:06:16]} 21. Qa4 {[%emt 0:05:13]} a5 {[%emt 0:02:25]} 22. Qb5 {[%emt 0:08:20]} a4 {[%emt 0:05:13]} 23. Qc4 {[%emt 0:04:34]} h6 {[%emt 0:01:59]} 24. h3 {[%emt 0:05:54]} Rac8 {[%emt 0:08:59]} 25. Qxa4 {[%emt 0:04:31]} Qxg3 {[%emt 0:00:18]} 26. Qb3 {[%emt 0:01:12]} Qxb3 {[%emt 0:04:21]} 27. axb3 {[%emt 0:00:04]} f6 {[%emt 0:00:12]} 28. Rd1 {[%emt 0:00:19]} Rfd8 {[%emt 0:02:59]} 29. Ra1 {[%emt 0:00:23]} Rb8 {[%emt 0:00:30]} 30. Raa7 {[%emt 0:00:22]} Rd1+ {[%emt 0:01:15]} 31. Kf2 {[%emt 0:00:17]} Rxb7 {[%emt 0:00:13]} 32. Rxb7 {[%emt 0:00:02]} h5 {[%emt 0:01:23]} 33. b4 {[%emt 0:00:14]} Kh7 {[%emt 0:01:00]} 34. b5 {[%emt 0:00:08]} Rd3 {[%emt 0:01:01]} 35. b6 {[%emt 0:00:21]} Rb3 {[%emt 0:00:20]} 36. Rb8 {[%emt 0:00:22]} h4 {[%emt 0:01:10]} 37. b7 {[%emt 0:00:08]} Kg6 {[%emt 0:00:30]} 38. Rh8 {[%emt 0:06:50]} Rb2+ {[%emt 0:01:12]} 39. Kf3 {[%emt 0:00:31]} Rxb7 {[%emt 0:00:38]} 1/2-1/2

[Event "GM ZIA Smirity-A 2025"]
[Site "Dhaka"]
[Date "2025.02.21"]
[Round "8.11"]
[White "Hamid, Rani"]
[Black "Rayan Rashid Mugdho"]
[Result "0-1"]
[Annotator "RC"]
[ECO "B92"]
[WhiteElo "1913"]
[BlackElo "1861"]
[PlyCount "88"]
[EventDate "2025.02.17"]
[EventType "swiss"]
[EventCountry "BAN"]
[SourceTitle "playchess.com"]
[Source "ChessBase"]
[SourceQuality "1"]
[TimeControl "5400+30"]

1. e4 {[%emt 0:00:19]} c5 {[%emt 0:00:44]} 2. Nf3 {[%emt 0:01:15]} d6 {[%emt 0:00:49]} 3. d4 {[%emt 0:00:11]} cxd4 {[%emt 0:00:23]} 4. Nxd4 {[%emt 0:00:15]} Nf6 {[%emt 0:00:34]} 5. Nc3 {[%emt 0:00:07]} a6 {[%emt 0:00:55]} 6. Be2 {[%emt 0:00:11]} e5 {[%emt 0:00:58]} 7. Nb3 {[%emt 0:00:03]} Be7 {[%emt 0:00:27]} 8. O-O {[%emt 0:00:07]} O-O {[%emt 0:01:25]} 9. f4 {[%emt 0:01:21]} Nbd7 {[%emt 0:05:05]} 10. Kh1 {[%emt 0:00:33]} b5 {[%emt 0:01:19]} 11. Be3 {[%emt 0:06:42]} Bb7 {[%emt 0:04:25]} 12. Bf3 {[%emt 0:01:07]} Rc8 {[%emt 0:01:35]} 13. a3 {[%emt 0:00:57]} exf4 {[%emt 0:09:27]} 14. Bxf4 {[%emt 0:00:13]} Ne5 {[%emt 0:00:33]} 15. Bxe5 {[%emt 0:03:15]} dxe5 {[%emt 0:00:18]} 16. Qe2 {[%emt 0:00:19]} Qb6 {[%emt 0:05:28]} 17. Rad1 {[%emt 0:04:16]} Rfd8 {[%emt 0:03:04]} 18. Nd5 {[%emt 0:02:44]} Nxd5 {[%emt 1:02:01]} 19. exd5 {[%emt 0:00:12]} Bf6 {[%emt 0:00:00]} 20. Be4 {[%emt 0:05:41]} Rd6 {[%emt 0:00:00]} 21. Qf3 {[%emt 0:04:38]} Rcd8 {[%emt 0:00:00]} 22. Nc1 {[%emt 0:02:47]} g6 {[%emt 0:00:00]} 23. Ne2 {[%emt 0:02:05]} Qc7 {[%emt 0:00:00]} 24. g4 {[%emt 0:02:04]} Qd7 {[%emt 0:00:00]} 25. b3 {[%emt 0:02:26]} Rc8 {[%emt 0:00:00]} 26. h3 {[%emt 0:09:28]} Bg7 {[%emt 0:00:00]} 27. Qd3 {[%emt 0:02:41]} a5 {[%emt 0:00:00]} 28. Qd2 {[%emt 0:05:18]} h5 {[%emt 0:00:00]} 29. Rg1 {[%emt 0:01:14]} f5 {[%emt 0:00:00]} 30. gxf5 {[%emt 0:01:41]} gxf5 {[%emt 0:00:00]} 31. Bg2 {[%emt 0:00:48]} f4 {[%emt 0:00:00]} 32. Kh2 {[%emt 0:00:52]} Qf5 {[%emt 0:00:00]} 33. Nc3 {[%emt 0:01:03]} f3 {[%emt 0:00:00]} 34. Bf1 {[%emt 0:03:40]} b4 {[%emt 0:00:00]} 35. axb4 {[%emt 0:00:39]} axb4 {[%emt 0:00:00]} 36. Bd3 {[%emt 0:00:34]} bxc3 {[%emt 0:00:00]} 37. Bxf5 {[%emt 0:00:44]} cxd2 {[%emt 0:00:00]} 38. Bxc8 {[%emt 0:00:12]} Bxc8 {[%emt 0:00:00]} 39. Rxd2 {[%emt 0:00:06]} e4 {[%emt 0:00:00]} 40. Rd4 {[%emt 0:04:37]} f2 {[%emt 0:00:04]} 41. Rxg7+ {[%emt 0:00:46]} Kxg7 {[%emt 0:00:05]} 42. Kg2 {[%emt 0:00:02]} e3 {[%emt 0:00:29]} 43. Rf4 {[%emt 0:01:39]} Rg6+ {[%emt 0:00:22]} 44. Kf1 {[%emt 0:00:57]} Bxh3+ {[%emt 0:00:35]} 0-1

[Event "GM ZIA Smirity-A 2025"]
[Site "Dhaka"]
[Date "2025.02.21"]
[Round "8.12"]
[White "Aiyan, Rahman"]
[Black "Islam, M.M. Zahirul"]
[Result "1-0"]
[Annotator "RC"]
[ECO "C01"]
[WhiteElo "1827"]
[BlackElo "1912"]
[PlyCount "113"]
[EventDate "2025.02.17"]
[EventType "swiss"]
[EventCountry "BAN"]
[SourceTitle "playchess.com"]
[Source "ChessBase"]
[SourceQuality "1"]
[TimeControl "5400+30"]

1. e4 {[%emt 0:00:03]} e6 {[%emt 0:24:39]} 2. d4 {[%emt 0:00:01]} d5 {[%emt 0:00:08]} 3. exd5 {[%emt 0:00:06]} exd5 {[%emt 0:00:02]} 4. Bd3 {[%emt 0:00:01]} Bd6 {[%emt 0:00:02]} 5. Qf3 {[%emt 0:00:22]} Nc6 {[%emt 0:00:49]} 6. c3 {[%emt 0:00:02]} Nge7 {[%emt 0:00:31]} 7. Ne2 {[%emt 0:01:49]} O-O {[%emt 0:00:41]} 8. Bg5 {[%emt 0:08:06]} f6 {[%emt 0:00:02]} 9. Bf4 {[%emt 0:04:00]} Re8 {[%emt 0:01:01]} 10. Bg3 {[%emt 0:13:53]} Be6 {[%emt 0:01:35]} 11. Nd2 {[%emt 0:00:45]} Qd7 {[%emt 0:00:52]} 12. Bxd6 {[%emt 0:04:17]} Qxd6 {[%emt 0:01:33]} 13. O-O-O {[%emt 0:00:27]} a6 {[%emt 0:01:51]} 14. Qf4 {[%emt 0:10:01]} Qd7 {[%emt 0:00:37]} 15. h4 {[%emt 0:01:30]} b5 {[%emt 0:00:31]} 16. Nb3 {[%emt 0:04:44]} Bf5 {[%emt 0:00:03]} 17. Nc5 {[%emt 0:00:58]} Qc8 {[%emt 0:00:01]} 18. h5 {[%emt 0:02:54]} h6 {[%emt 0:01:53]} 19. Bxf5 {[%emt 0:09:01]} Nxf5 {[%emt 0:00:03]} 20. Qf3 {[%emt 0:00:09]} Nce7 {[%emt 0:05:05]} 21. Nf4 {[%emt 0:03:13]} c6 {[%emt 0:00:54]} 22. Nfe6 {[%emt 0:04:07]} b4 {[%emt 0:03:39]} 23. g4 {[%emt 0:07:26]} Nd6 {[%emt 0:01:28]} 24. Qf4 {[%emt 0:00:47]} Ne4 {[%emt 0:01:53]} 25. cxb4 {[%emt 0:11:25]} a5 {[%emt 0:00:02]} 26. Nc7 {[%emt 0:01:33]} Qb8 {[%emt 0:01:47]} 27. Nxe4 {[%emt 0:00:18]} dxe4 {[%emt 0:00:15]} 28. Qg3 {[%emt 0:00:03]} Qxb4 {[%emt 0:01:45]} 29. Nxe8 {[%emt 0:00:41]} Rxe8 {[%emt 0:00:03]} 30. Qb3+ {[%emt 0:05:49]} Nd5 {[%emt 0:00:01]} 31. Qxb4 {[%emt 0:00:30]} Nxb4 {[%emt 0:00:30]} 32. Kb1 {[%emt 0:00:30]} Nd3 {[%emt 0:00:30]} 33. Rhf1 {[%emt 0:00:30]} Nb4 {[%emt 0:00:30]} 34. a3 {[%emt 0:00:30]} Nd5 {[%emt 0:00:30]} 35. Rc1 {[%emt 0:00:30]} Re6 {[%emt 0:00:30]} 36. Rc5 {[%emt 0:00:30]} Kf7 {[%emt 0:00:30]} 37. Rfc1 {[%emt 0:00:30]} Ne7 {[%emt 0:00:30]} 38. Rxa5 {[%emt 0:00:30]} g6 {[%emt 0:00:30]} 39. Rac5 {[%emt 0:00:30]} Rd6 {[%emt 0:00:30]} 40. hxg6+ {[%emt 0:00:30]} Kxg6 {[%emt 0:00:30]} 41. Rd1 {[%emt 0:00:30]} f5 {[%emt 0:00:30]} 42. gxf5+ {[%emt 0:00:30]} Nxf5 {[%emt 0:00:30]} 43. Re5 {[%emt 0:00:30]} Nxd4 {[%emt 0:00:30]} 44. Rxe4 {[%emt 0:00:30]} c5 {[%emt 0:00:30]} 45. b4 {[%emt 0:00:30]} Rb6 {[%emt 0:00:30]} 46. Ka2 {[%emt 0:00:30]} Nb5 {[%emt 0:00:30]} 47. Rc4 {[%emt 0:00:30]} cxb4 {[%emt 0:00:30]} 48. Rg1+ {[%emt 0:00:30]} Kf5 {[%emt 0:00:30]} 49. Rxb4 {[%emt 0:00:30]} Nc3+ {[%emt 0:00:30]} 50. Kb3 {[%emt 0:00:30]} Rxb4+ {[%emt 0:00:30]} 51. axb4 {[%emt 0:00:30]} Ne4 {[%emt 0:00:30]} 52. b5 {[%emt 0:00:30]} h5 {[%emt 0:00:30]} 53. b6 {[%emt 0:00:30]} h4 {[%emt 0:00:30]} 54. Kb4 {[%emt 0:00:30]} Nd6 {[%emt 0:00:30]} 55. Rd1 {[%emt 0:00:30]} Ke5 {[%emt 0:00:30]} 56. f4+ {[%emt 0:00:30]} Ke6 {[%emt 0:00:30]} 57. f5+ {[%emt 0:00:30]} 1-0